Cogmind - Beta 16 @@@ ROGUE MODE // 2025.11.24 @ 00:22:05 Player: puppuppit Result: Destroyed by G-34 Mercenary with Small Laser Performance ------------- Evolutions (0) 0 Regions Visited (2) 400 Robots Destroyed (40) 200 Value Destroyed (646) 646 Prototype IDs (2) 40 Alien Tech Used (0) 0 Bonus (35) 35 TOTAL SCORE: 1321 Bonus ------- Follower Combat Kills 35 Cogmind --------- Core Integrity 0/250 Matter 280/300 Energy 250/250 System Corruption 0% Temperature Cool (19) Movement Treading (320) Ox2 Location -10/Mines Parts ------- > --- POWER (1) -------- Ion Engine > --- PROPULSION (2) --- Light Treads > --- UTILITY (2) ------ High-capacity Storage Unit Weapon Shielding > --- WEAPON (2) ------- Light Assault Rifle Light Assault Rifle > --- INVENTORY (20) --- Light Ion Engine Light Treads Improved Heat Sink High-capacity Matter Pod (200) High-capacity Matter Pod (200) Structural Scanner Signal Interpreter Targeting Computer Tractor Beam Light Assault Rifle Light Assault Rifle Light Assault Rifle Light Assault Rifle Explosive Trap Explosive Trap Explosive Trap Peak State ------------ > --- POWER ------------ Light Ion Engine > --- PROPULSION ------- Light Treads Light Treads > --- UTILITY ---------- Small Storage Unit Improved Terrain Scanner > --- WEAPON ----------- Light Assault Rifle Light Assault Rifle > --- INVENTORY -------- (None) [Rating: 9] Favorites ----------- Power Ion Engine Engine Ion Engine Propulsion Light Treads Treads Light Treads Utility High-capacity Storage Unit Device Structural Scanner Storage High-capacity Storage Unit Protection Light Armor Plating Weapon Light Assault Rifle Ballistic Gun Light Assault Rifle Build | -11 -10 -10 ------- Run | Yrd Mat Min Slots Evolved . | . . . Power . | . . . Propulsion . | . . . Utility . | . . . Weapon . | . . . Parts Attached 22 | 7 9 6 Power 3 | 1 1 1 Engine 3 | 1 1 1 Core . | . . . Reactor . | . . . Propulsion 5 | 2 2 1 Treads 5 | 2 2 1 Leg . | . . . Wheel . | . . . Hover . | . . . Flight . | . . . Utility 9 | 2 5 2 Device 2 | 1 1 . Storage 3 | 1 2 . Processor . | . . . Hackware . | . . . Protection 4 | . 2 2 Artifact . | . . . Weapon 5 | 2 1 2 Energy Gun . | . . . Energy Cannon . | . . . Ballistic Gun 5 | 2 1 2 Ballistic Cannon . | . . . Launcher . | . . . Special Weapon . | . . . Impact Weapon . | . . . Slashing Weapon . | . . . Piercing Weapon . | . . . Special Melee Weapon . | . . . Unidentified Prototypes . | . . . Parts Lost 10 | . 2 8 Power 1 | . . 1 Propulsion 3 | . . 3 Utility 3 | . 1 2 Weapon 3 | . 1 2 Highest Loss Streak 5 | . 1 5 To Critical Strikes . | . . . Average Backups 11 | . 11 16 Power 1 | . 1 1 Propulsion 1 | . 1 2 Utility 7 | . 7 8 Weapon 2 | . 1 4 Tool/Special . | . . . Unused Backups 15 | . . 15 Power 1 | . . 1 Propulsion . | . . . Utility 10 | . . 10 Weapon 4 | . . 4 Tool/Special . | . . . Average Slot Usage (%) 99 | . 99 99 Engine 14 | . 14 14 Treads 27 | . 28 27 Device 3 | . 5 . Storage 14 | . 14 14 Protection 10 | . 8 13 Ballistic Gun 27 | . 27 28 Peak Build Rating 9 | 9 9 9 Average Rating 7 | 6 7 8 On Entrance 5 | . 9 8 Avg Prop Armor Cover (%) . | . . . Naked Turns . | . . . Heaviest Build 50 | 11 50 50 Greatest Support 40 | 40 40 40 Greatest Overweight (x) 1 | . 1 1 Average Overweight (x) . | . . 1 Largest Inventory Capacity 20 | 8 20 20 Average Capacity 17 | 7 17 20 Most Carried 20 | 1 17 20 Average Carried 12 | . 11 18 Final Capacity 20 | 8 20 20 Final Carried 16 | . 16 16 Class Distribution -------------------- 100% | Mutant Dominant Class ---------------- Mutant | -10/Materials Mutant | -10/Mines Resources | -11 -10 -10 ----------- Run | Yrd Mat Min Matter Collected 887 | 306 473 108 Remotely . | . . . Salvage Created 1165 | 210 715 240 Parts 80 | 18 43 19 Haulers Intercepted 2 | . 2 . Recyclers Shooed 1 | . 1 . Parts Field Recycled . | . . . Retrieved Matter . | . . . Parts Self-Destructed . | . . . Prevented . | . . . Parts Restored . | . . . Kills | -11 -10 -10 ------- Run | Yrd Mat Min Combat Hostiles Destroyed 23 | . 13 10 Guns 23 | . 13 10 Classes Destroyed 8 | 3 5 . Worker 3 | 2 1 . Builder 1 | . 1 . Tunneler 5 | 5 . . Hauler 2 | . 2 . Recycler 3 | 1 2 . Watcher 3 | . 3 . Swarmer 12 | . 6 6 Grunt 11 | . 7 4 Best Kill Streak 6 | 5 6 3 Combat Bots Only 3 | . 3 3 Max Kills in Single Turn 1 | 1 1 1 Gunslinging . | . . . Exploded . | . . . Melee . | . . . Uniques/NPCs Destroyed . | . . . Combat | -11 -10 -10 -------- Run | Yrd Mat Min Hostile Shots Fired 183 | . 80 103 Missed 32 | . 15 17 Hits 151 | . 65 86 Projectile 151 | . 65 86 Critical Strikes 2 | . . 2 Damage Taken 1598 | . 622 976 Core 255 | . 83 172 Absorbed by Shields . | . . . Redirected to Shielding 61 | . . 61 Regen/Repaired (Parts) 55 | . 55 . Core Remaining (%) 100 | 100 . . Volleys Fired 132 | 18 74 40 Largest 2 | 2 2 2 Hottest 40 | 40 40 40 Shots Fired 264 | 36 148 80 Gun 264 | 36 148 80 Cannon . | . . . Launcher . | . . . Special . | . . . Kinetic 264 | 36 148 80 Thermal . | . . . Explosive . | . . . Electromagnetic . | . . . Robot Hit Streak 13 | 4 13 10 Robot Miss Streak 4 | 3 4 3 Penetration Max . | . . . Secondary Targets 7 | . 3 4 Max Gunslinging Chain 1 | . 1 1 Shots Hit Robots 167 | 22 93 52 Core Hits 76 | 15 42 19 Critical Kills 2 | 1 1 . Critical Parts Destroyed . | . . . Critical Strikes 2 | 1 1 . Destroy 2 | 1 1 . Melee Attacks . | . . . Impact . | . . . Slashing . | . . . Piercing . | . . . Sneak Attacks . | . . . Combat Hostiles . | . . . Follow-up Attacks . | . . . Damage Inflicted 1436 | 191 806 439 Guns 1432 | 191 802 439 Cannons . | . . . Explosions . | . . . Melee . | . . . Ramming 4 | . 4 . Kinetic 1432 | 191 802 439 Thermal . | . . . Explosive . | . . . Electromagnetic . | . . . Impact . | . . . Slashing . | . . . Piercing . | . . . Highest Corruption . | . . . Average Corruption . | . . . Corruption Purged . | . . . Corruption Blocked . | . . . Overload Shots . | . . . Overflow Damage . | . . . Projectiles . | . . . Explosions . | . . . Melee . | . . . Knockbacks . | . . . Impact . | . . . Kinetic . | . . . Secondary . | . . . Self-Inflicted Damage . | . . . Shots . | . . . Rammed 3 | . 1 2 Targets Rammed 3 | . 1 2 Kicked . | . . . Crushed . | . . . Highest Temperature 50 | . 50 44 Average Temperature 13 | . 13 14 Received Heat Transfer 594 | . 162 432 Siege Activations . | . . . Martial Activations . | . . . Shielding Activations . | . . . Robots Disrupted . | . . . Combat Hostiles . | . . . Robots Corrupted . | . . . Combat Hostiles . | . . . Parts Fried . | . . . Impact Corruptions . | . . . Robots Melted . | . . . Combat Hostiles . | . . . Parts Melted . | . . . Heat Transferred . | . . . Parts Sabotaged . | . . . Parts Stolen . | . . . Parts Stripped . | . . . Power Chain Reactions . | . . . Alert | -11 -10 -10 ------- Run | Yrd Mat Min Maximum Alert Level . | . . . Low Security (%) 100 | 100 100 100 Level 1 . | . . . Level 2 . | . . . Level 3 . | . . . Level 4 . | . . . Level 5 . | . . . High Security . | . . . Max Security . | . . . Peak Influence 139 | 20 139 76 Initial 6 | . 3 6 Average 28 | 5 32 21 Influence Increases 801 | 40 474 287 Destroy 0b10 Robot/C 480 | . 260 220 Destroy 0b10 Robot/NC 85 | 40 45 . Destroy Leader 110 | . 60 50 Allied During Kill 2 | . . 2 Successful Hack 34 | . 34 . Select Force Hacks 30 | . 30 . Lose Combat Pursuer 60 | . 45 15 Influence Decreases 779 | 35 463 281 Entered New Map 12 | . 2 10 Time Decay 656 | 35 407 214 Lost Part 47 | . 10 37 Lost Ally 20 | . . 20 Purge Threat 44 | . 44 . Squads Dispatched 2 | . 2 . Investigation 2 | . 2 . Extermination . | . . . Reinforcement . | . . . Assault . | . . . Garrison . | . . . Intercept . | . . . Searches Triggered . | . . . Construction Impeded . | . . . Haulers Reinforced . | . . . Active Scanning Responses . | . . . Cargo Convoy Interrupts . | . . . Stealth | -11 -10 -10 --------- Run | Yrd Mat Min Distress Signals 3 | . 3 . Communications Jammed . | . . . Distress Signals . | . . . Times Spotted 36 | . 23 13 Peak Tracking Total 5 | . 5 3 Tactical Retreats 3 | . 2 1 Traps | -11 -10 -10 ------- Run | Yrd Mat Min Traps Triggered 2 | . 2 . Indirectly . | . . . Trap Hack Attempts . | . . . Triggered . | . . . Disarmed . | . . . Reprogrammed . | . . . Reused . | . . . Traps Extracted . | . . . Installed . | . . . Triggered . | . . . Most Traps Carried 3 | . . 3 Machines | -11 -10 -10 ---------- Run | Yrd Mat Min Machines Disabled . | . . . Max in Single Turn . | . . . Machines Repaired . | . . . Machines Dismantled . | . . . Machines Sabotaged . | . . . Overloaded Fab Kills . | . . . Hacking | -11 -10 -10 --------- Run | Yrd Mat Min Machines Accessed 8 | . 8 . Terminals 6 | . 6 . Fabricators . | . . . Repair Stations 1 | . 1 . Recycling Units 1 | . 1 . Scanalyzers . | . . . Garrison Access . | . . . Total Hacks 38 | . 38 . Successful 26 | . 26 . Failed 11 | . 11 . Catastrophic 1 | . 1 . Database Lockouts 1 | . 1 . Manual 28 | . 28 . Terminals 29 | . 29 . Fabricators . | . . . Repair Stations 3 | . 3 . Recycling Units 6 | . 6 . Scanalyzers . | . . . Garrison Access . | . . . Terminal Hacks 10 | . 10 . Robot Analysis 6 | . 6 . Prototype ID Bank 1 | . 1 . Terminal Index 1 | . 1 . Alert Level 1 | . 1 . Unreport Threat 1 | . 1 . Fabricator Hacks . | . . . Repair Station Hacks 2 | . 2 . Scan Component 1 | . 1 . Repair 1 | . 1 . Recycling Unit Hacks 1 | . 1 . Retrieve Components 1 | . 1 . Scanalyzer . | . . . Garrison Access Hacks . | . . . Unauthorized Hacks 13 | . 13 . Terminals 9 | . 9 . Botnet 3 | . 3 . Operators 1 | . 1 . Skim 5 | . 5 . Fabricators . | . . . Repair Stations . | . . . Recycling Units 4 | . 4 . Reject 1 | . 1 . Recyclers 1 | . 1 . Mask 1 | . 1 . Tunnel 1 | . 1 . Scanalyzers . | . . . Garrison Access . | . . . Data Cores Recovered . | . . . Used . | . . . Hacking Detections 6 | . 6 . Full Trace Events . | . . . Feedback Events . | . . . Feedback Blocked . | . . . Robot Schematics Acquired . | . . . Robots Built . | . . . Authchips . | . . . Time . | . . . Total Robot Build Rating . | . . . Part Schematics Acquired . | . . . Parts Built . | . . . Authchips . | . . . Time . | . . . Total Part Build Rating . | . . . Part Studies Acquired . | . . . Parts Repaired 1 | . 1 . Time 26 | . 26 . Parts Recycled . | . . . Recycled Matter . | . . . Retrieved Matter . | . . . Retrieved Components 9 | . 9 . Parts Scanalyzed . | . . . Part Schematics Acquired . | . . . Parts Damaged . | . . . Bothacking | -11 -10 -10 ------------ Run | Yrd Mat Min Used RIF Installer . | . . . Robots Hacked . | . . . Non-combat . | . . . Combat . | . . . Robot Hacks Applied . | . . . Relay Couplers Released . | . . . Fabnet Peak Effective % . | . . . Robots Rewired . | . . . Allies Hacked . | . . . Hacks Repelled . | . . . Allies | -11 -10 -10 -------- Run | Yrd Mat Min Total Allies 1 | . . 1 Largest Group 1 | . . 1 Highest-Rated Group 31 | . . 31 Highest-Rated Ally 31 | . . 31 Total Orders . | . . . Ally Attacks 4 | . . 4 Total Damage 61 | . . 61 Kills 1 | . . 1 Allies Corrupted . | . . . Allies Melted . | . . . Intel | -11 -10 -10 ------- Run | Yrd Mat Min Active Infowar (turns) 832 | 35 789 8 Terrain 106 | 35 71 . Structural 726 | . 718 8 Robot Analysis Total 6 | . 6 . Derelict Logs Recovered 1 | . . 1 Drone Launches . | . . . Drone Recoveries . | . . . Exploration | -11 -10 -10 ------------- Run | Yrd Mat Min Turns Passed 3028 | 134 2154 740 Spaces Moved 1160 | 49 855 256 Core 1 | 1 . . Treads 1159 | 48 855 256 Legs . | . . . Wheels . | . . . Hover . | . . . Flight . | . . . Fastest Speed 50 | 50 160 240 Average Speed 221 | 157 219 240 Slowest Speed 240 | 160 240 240 Overloaded Moves . | . . . Propulsion Burnouts . | . . . Robots Hopped . | . . . Potential Cave-ins . | . . . Cave-ins Triggered . | . . . Exploration Rate (%) 55 | 4 99 64 Regions Visited 2 Branch Regions 1 Pre-discovered Areas 3 | . 3 . Known Exits Taken . | . . . Unknown Exits Taken 2 | 1 1 . Scrap Searched 1 | . . 1 Spaces Dug . | . . . Terrain Destroyed . | . . . Melee . | . . . Projectile . | . . . AOE . | . . . Terrain Rammed . | . . . Walls Destroyed . | . . . Machines Disabled . | . . . Actions | -11 -10 -10 --------- Run | Yrd Mat Min Total 1402 | 74 1007 321 Wait 45 | . 45 . Move 1158 | 48 854 256 Hop . | . . . Pick Up 28 | 1 16 11 Fast Attach 9 | 6 3 . Attach 10 | 1 2 7 Detach . | . . . Swap 10 | . 9 1 Drop 7 | . 3 4 Fire 132 | 18 74 40 Melee . | . . . Ram . | . . . Kick . | . . . Crush 3 | . 1 2 Escape Stasis . | . . . Rewire . | . . . Trap . | . . . Miscellaneous . | . . . Route ------- -11/Scrapyard -10/Materials (discovered 6 exits: *Mat x3 / [*Min x2] / [*Sub]) -10/Mines (discovered 2 exits: Mat x2) History --------- Turn | Location | Event 27 | -11/Scrapyard | Discovered new exit (range 15) 135 | -11/Scrapyard | Entered Materials 303 | -10/Materials | Build established: Mutant 305 | -10/Materials | Discovered new exit (range 7) 329 | -10/Materials | Discovered new exit (range 9) 569 | -10/Materials | Discovered new exit (range 10) 839 | -10/Materials | Discovered new exit (range 12) 915 | -10/Materials | Discovered new exit (range 11) 1369 | -10/Materials | Discovered new exit (range 16) 1371 | -10/Materials | Central database locked down 1462 | -10/Materials | Learned location of Recycling (-8) 1510 | -10/Materials | Learned Storage security intel 1520 | -10/Materials | Learned Storage emergency access door positions 1561 | -10/Materials | Learned 4 Recycling zone layouts 1596 | -10/Materials | Loaded intel: 3 trap records 2174 | -10/Materials | Repaired Lgt. Assault Rifle 2289 | -10/Materials | Entered Mines 2290 | -10/Mines | Identified exit to Materials 2325 | -10/Mines | Met a Derelict bent on vengeance 2402 | -10/Mines | Core integrity fell below 50% 2661 | -10/Mines | Found a hidden stash of uninstalled traps 2804 | -10/Mines | Received a Mining Laser from a helpful Derelict 3014 | -10/Mines | Core integrity fell below 20% 3029 | -10/Mines | Destroyed by G-34 Mercenary with Small Laser Last Messages --------------- uncover you when the ceiling comes crashing down? Here, take my spare." 02807_ GY-QRZ(g): "You're apparently new around these parts, I'll cover you." 02817_ GY-QRZ(g): "Mining lasers are a lot more useful than you might think..." 02934_ T-07 Excavator is excavating. 02945_ U-05 Engineer lays Concrete. 02977_ Lgt. Assault Rifle destroyed. 02989_ Critical hit (Burn: +37). 02995_ Lgt. Assault Rifle destroyed. 03005_ Weapon Shielding destroyed. 03007_ Lgt. Treads destroyed. 03007_ Slammed into G-47 Trooper. 03012_ Searching scrap... 03012_ Found 32 Matter. 03012_ Found 40 Matter. 03013_ Acquired 28 matter. 03015_ Lgt. Treads destroyed. 03022_ G-47 Trooper destroyed. Map ----- +----------------------------------------------------+ | ???????????????????????????????????????????????? | | ????????????###????###???########?###?###??#???? | | ???????????## ##?# ##??# ? ? ? #??? | | ???????????# ## #??# """ """ """ """ #??? | | ???????????# ???# """ """ """ """ #??? | | ???????????# ????# """ """ """ """ #??? | | ???????????# #?????# #??? | | ????????????# #??##### """ """ """ """ #??? | | ????????????# #### ## """ """ """ """ #??? | | ????????????# | """ """ """ """ #??? | | ???????????## ## #### | | ??????????## ### # """ """ """ """ | | ???######## ##### ### """ """ """ """ #### | | ??## ## ##??# ##?# """ """ """ """ #??? | | ??# #???# #??# #?## | | ??# ##???## ####### ##### #####?# | | ??# #######?# #?????# | | ??# #### #### #?????# | | ??# #### #?# ###### ############### | | ??## #?# #?# #????# ##??????# | | ???## ##?# ### #???# ##??????# ####### | | ????###????# #### ???????# #?????? | | ???????????## ######### ????##### #?????? | | ????????????# ###????# ? ????# #?????? | | ????????????# #????# = #??# ????# ## ##?????? | | ????????????# #?????#@%#????#????# ?# #??????? | | ????# # ###### #?????##g#?????????# ?# #??????? | | ?????# #??????#%#????# ???# ?# #??????# | | ??????# ######## #????# ## ## ####??## | | ??????## ###### #???## %= #### | | ??????????????# ####### #?# %* ## | | ??????????????# #?????# ## = | | ????????????? ????### ## | | ???????????"" """ #?????# ### | | ????????? """ """ #??????# #### # | | ???????? """ """ #???????# # #??## ## | | ????????? #???????? $### ##???## #? | | ???????? """ """ #???????? #???##?????# #? | | ???????? """ """ ????????? #??????????# ##? | | ????????? ?"" ??? #????????? #??????????# #?? | | ???????????????????????????? #??????????## #### | | ?????????????????????????????#???????????####### | | ?????????????????????????????????????????##### | | ????????????????????????????????????????##### | | ???????????????????????????????????????#### | | ????????????????????????????????? ## | | ??????????????????????????????????## | | ??????????????????????????????????### | | ???????????????????????????????????### ####### | | ??????????????????????????????????????? ####### | +----------------------------------------------------+ Best States ------------- Heat Dissipation 25 Energy Generation 10 Energy Capacity 250 Matter Stores 300 Matter Capacity 300 Sight Range 16 Terrain Scan Range 16 Terrain Scan Density 10 Armor Coverage 150 Weapon Shielding 33 Evasion (%) 40 Recoil Reduction 2 Item Schematics ----------------- None Robot Schematics ------------------ None Fabricated ------------ Nothing Repaired ---------- Lgt. Assault Rifle | 31% | -10/Materials Studied --------- None Alien Tech Used ----------------- None Achievements -------------- None Challenges ------------ None Game ------ Seed CentriumArchitectRedirector Manual? 0 Play Time 00:12:18 Cumulative 632.2 hours Start 2025.11.23 @ 23:13:25 End 2025.11.24 @ 00:22:05 Sessions 1 Manual Loads 0 Difficulty Rogue Special Mode None Game No. 320 Rogue 320 Adventurer 0 Explorer 0 Win Type - Total 7 Types 3/0/2/1/0/0/0/0/0/1 Lore% 87 Gallery% 78 Achievement% 47 Wizard Run 0 Options --------- Layout 2 ASCII 0 Keyboard 1 Movement Vi Keybinds 0 Fullscreen 1 Font 16/SmallcapsGlow Map View 55x47 Zoom Use 0% Tactical HUD 1 Map Filters NONE Filters NONE Steam 0 RUN: 183b836a-1090-4bda-bdd2-0c384bf04e7e